fUST/lending_fUST_20240906
["ID","MTS","AMOUNT","RATE_DAILY","PERIOD"]
[337294048,1725586248532,-500.0,0.00021627,2]
[337294050,1725586248542,-500.0,0.00021627,2]
[337294052,1725586248551,-154.425653,0.00021627,2]
[337294054,1725586248561,-154.425653,0.00021627,2]
[337294056,1725586248570,-951.36,0.00021627,2]
[337294058,1725586248580,-11189.28085275,0.00021627,2]
[337294064,1725586248624,-503.02918786,0.00020576,2]
[337294066,1725586248634,-363.15081214,0.00021627,2]
[337295098,1725586343305,2071.84741369,0.00020431,3]
[337295102,1725586394984,562.96900744,0.00020476,2]
[337295103,1725586463837,237.5601349,0.00019553,2]
[337295105,1725586585936,492.59788151,0.0002043,2]
[337295106,1725586646234,5121.21500099,0.0002,2]
[337295107,1725586657440,159.730863,0.00019688,2]
[337295109,1725586776416,431.02314633,0.00020429,2]
[337295110,1725586834898,507.0,0.00027,120]
[337295112,1725586961679,377.14525303,0.00020421,2]
[337295113,1725586990033,151.4305847,0.0002042,2]
[337295119,1725587152305,330.00209641,0.00020421,2]
[337295120,1725587183340,174.227348,0.00019674,2]
[337295121,1725587183558,174.227348,0.00019879,2]
[337295122,1725587183793,174.227348,0.00020084,2]
[337295123,1725587184054,174.227348,0.00020289,2]
[337295124,1725587184264,174.227348,0.00020494,2]
[337295125,1725587201163,12717.6806488,0.00019534,2]
[337295128,1725587236002,152.31122533,0.00020465,2]
[337295129,1725587237924,152.31122531,0.00020468,2]
[337295130,1725587239958,152.31122531,0.00020472,2]
[337295131,1725587241914,152.31122531,0.00020475,2]
[337295132,1725587258575,256.2901934,0.00019534,2]
[337295133,1725587337713,913.43226923,0.00020475,2]
[337295137,1725587342818,288.75183435,0.00020421,2]
[337295138,1725587356168,55555.0,0.00020465,3]
[337295534,1725587438854,-154.04,0.00020518,3]
[337295535,1725587438865,-300.0,0.0002052,2]
[337295536,1725587438875,-331.93791614,0.0002052,2]
[337295537,1725587438885,-300.0,0.0002052,2]
[337295538,1725587438895,-214.84503305,0.00020521,2]
[337295539,1725587438905,-500.0,0.00020521,2]
[337295540,1725587438914,-514.13265295,0.00020521,2]
[337295541,1725587438934,-505.33667718,0.00020521,2]
[337295542,1725587438944,-503.39714117,0.00020521,2]
[337295543,1725587438953,-209.6153826,0.00020521,2]
[337295544,1725587438964,-153.27139864,0.00020521,2]
[337295545,1725587438975,-432.72757427,0.00020521,2]
[337295546,1725587438986,-69.39132021,0.00020521,2]
[337295547,1725587438995,-336.73874572,0.00020521,2]
[337295548,1725587439005,-502.34395692,0.00020521,2]
[337295549,1725587439014,-503.86757562,0.00020521,2]
[337295550,1725587439023,-296.78895511,0.00020521,2]
[337295551,1725587439033,-556.3684692,0.00020521,2]
[337295552,1725587439042,-508.9583479,0.00020521,2]
[337295553,1725587439052,-500.0,0.00020521,2]
[337295554,1725587439061,-516.30240242,0.00020521,2]
[337295555,1725587439070,-504.12005666,0.00020521,2]
[337295556,1725587439080,-505.65982879,0.00020521,2]
[337295557,1725587439090,-626.15733124,0.00020521,2]
[337295558,1725587439099,-480.74745129,0.00020521,2]
[337295559,1725587439109,-503.49025684,0.00020521,2]
[337295560,1725587439118,-504.65634884,0.00020521,2]
[337295561,1725587439128,-509.22847665,0.00020521,2]
[337295562,1725587439137,-565.85622195,0.00020521,2]
[337295563,1725587439147,-504.78088013,0.00020521,2]
[337295564,1725587439156,-507.48304897,0.00020521,2]
[337295565,1725587439166,-502.1401671,0.00020521,2]
[337295566,1725587439175,-254.70997624,0.00020521,2]
[337295567,1725587439185,-300.87709261,0.00020521,2]
[337295568,1725587439194,-357.37097779,0.00020521,2]
[337295569,1725587439203,-509.60658534,0.00020521,2]
[337295570,1725587439212,-503.57832729,0.00020521,2]
[337295571,1725587439222,-198.65665816,0.00020521,2]
[337295572,1725587439232,-503.44306657,0.00020521,2]
[337295573,1725587439241,-463.24895093,0.00020521,2]
[337295574,1725587439251,-500.0,0.00020521,2]
[337295575,1725587439259,-509.20578359,0.00020521,2]
[337295576,1725587439268,-503.48904117,0.00020521,2]
[337295577,1725587439278,-507.98578399,0.00020521,2]
[337295578,1725587439289,-743.53,0.00020521,2]
[337295579,1725587439298,-507.47526896,0.00020521,2]
[337295580,1725587439308,-511.37546581,0.00020521,2]
[337295581,1725587439317,-503.9110575,0.00020521,2]
[337295582,1725587439327,-504.38947523,0.00020521,2]
[337295583,1725587439336,-502.99350801,0.00020521,2]
[337295584,1725587439345,-500.0,0.00020521,2]
[337295585,1725587439355,-505.0,0.00020521,2]
[337295586,1725587439365,-507.40343224,0.00020521,2]
[337295587,1725587439375,-509.0242618,0.00020521,2]
[337295588,1725587439385,-502.82446475,0.00020521,2]
[337295589,1725587439395,-500.0,0.00020521,2]
[337295590,1725587439404,-224.21079443,0.00020521,2]
[337295591,1725587439414,-171.5269571,0.00020521,2]
[337295592,1725587439423,-506.41469261,0.00020521,2]
[337295593,1725587439434,-508.1491948,0.00020521,2]
[337295594,1725587439443,-502.60404774,0.00020521,2]
[337295595,1725587439453,-456.32797429,0.00020521,2]
[337295596,1725587439463,-504.13413244,0.00020521,2]
[337295597,1725587439474,-327.66149041,0.00020521,2]
[337295598,1725587439484,-161.94261209,0.00020521,2]
[337295599,1725587439494,-502.9037565,0.00020521,2]
[337295600,1725587439504,-506.38004723,0.00020521,2]
[337295601,1725587439514,-233.73990871,0.00020521,2]
[337295602,1725587439524,-293.6159258,0.00020521,2]
[337295603,1725587439535,-515.82654231,0.00020521,2]
[337295604,1725587439545,-335.05226417,0.00020521,2]
[337295605,1725587439557,-500.0,0.00020521,2]
[337295606,1725587439567,-235.49394362,0.00020521,2]
[337295607,1725587439578,-200.3738183,0.00020521,2]
[337295608,1725587439588,-500.0,0.00020521,2]
[337295609,1725587439597,-279.88212374,0.00020521,2]
[337295610,1725587439608,-500.0,0.00020521,2]
[337295611,1725587439617,-501.16847673,0.00020521,2]
[337295612,1725587439630,-503.41595978,0.00020521,2]
[337295613,1725587439640,-501.57211321,0.00020521,2]
[337295614,1725587439650,-500.0,0.00020521,2]
[337295615,1725587439660,-506.01603772,0.00020521,2]
[337295616,1725587439670,-500.0,0.00020521,2]
[337295617,1725587439679,-502.78627913,0.00020521,2]
[337295618,1725587439689,-502.0166279,0.00020521,2]
[337295619,1725587439699,-504.74871431,0.00020521,2]
[337295620,1725587439708,-511.22149955,0.00020521,2]
[337295621,1725587439717,-500.0,0.00020521,2]
[337295622,1725587439729,-500.0,0.00020521,2]
[337295623,1725587439748,-500.0,0.00020521,2]
[337295624,1725587439758,-500.0,0.00020521,2]
[337295625,1725587439768,-500.0,0.00020521,2]
[337295626,1725587439777,-500.0,0.00020521,2]
[337295627,1725587439786,-512.97706333,0.00020521,2]
[337295628,1725587439796,-507.26048881,0.00020521,2]
[337295629,1725587439805,-509.08205979,0.00020521,2]
[337295630,1725587439815,-508.93905629,0.00020521,2]
[337295631,1725587439824,-503.72879132,0.00020521,2]
[337295632,1725587439836,-510.72501076,0.00020521,2]
[337295633,1725587439845,-509.72116131,0.00020521,2]
[337295634,1725587439855,-617.31630636,0.00020521,2]
[337295635,1725587439865,-503.92564075,0.00020521,2]
[337295636,1725587439874,-506.04039632,0.00020521,2]
[337295637,1725587439884,-501.38667596,0.00020521,2]
[337295638,1725587439894,-580.47681383,0.00020521,2]
[337295639,1725587439904,-502.35250786,0.00020521,2]
[337295640,1725587439914,-505.00869409,0.00020521,2]
[337295641,1725587439925,-502.42764611,0.00020521,2]
[337295642,1725587439935,-503.30107867,0.00020521,2]
[337295643,1725587439944,-509.68606453,0.00020521,2]
[337295644,1725587439956,-503.22783136,0.00020521,2]
[337295645,1725587439966,-504.33907432,0.00020521,2]
[337295646,1725587439978,-505.95416555,0.00020521,2]
[337295647,1725587439988,-323.28670998,0.00020521,2]
[337295648,1725587439998,-500.58847933,0.00020521,2]
[337295649,1725587440007,-501.76124851,0.00020521,2]
[337295650,1725587440017,-503.71916604,0.00020521,2]
[337295651,1725587440026,-501.8273527,0.00020521,2]
[337295652,1725587440036,-500.0,0.00020521,2]
[337295653,1725587440045,-509.44574542,0.00020521,2]
[337295654,1725587440054,-501.32622976,0.00020521,2]
[337295655,1725587440065,-501.35528132,0.00020521,2]
[337295656,1725587440074,-510.94835607,0.00020521,2]
[337295657,1725587440083,-503.67716501,0.00020521,2]
[337295658,1725587440093,-518.03123678,0.00020521,2]
[337295659,1725587440101,-504.30867954,0.00020521,2]
[337295660,1725587440111,-508.06637142,0.00020521,2]
[337295661,1725587440121,-501.64378948,0.00020521,2]
[337295662,1725587440130,-507.1385773,0.00020521,2]
[337295663,1725587440139,-506.17437112,0.00020521,2]
[337295664,1725587440148,-511.37974864,0.00020521,2]
[337295665,1725587440158,-564.86752694,0.00020521,2]
[337295666,1725587440168,-503.113367,0.00020521,2]
[337295667,1725587440177,-503.70832887,0.00020521,2]
[337295668,1725587440186,-503.54423876,0.00020521,2]
[337295669,1725587440195,-505.23940153,0.00020521,2]
[337295670,1725587440205,-514.51719659,0.00020521,2]
[337295671,1725587440214,-506.14034459,0.00020521,2]
[337295672,1725587440223,-501.17493408,0.00020521,2]
[337295673,1725587440243,-501.76345942,0.00020521,2]
[337295674,1725587440252,-500.0,0.00020521,2]
[337295676,1725587440261,-501.39733531,0.00020521,2]
[337295678,1725587440270,-504.27613199,0.00020521,2]
[337295680,1725587440280,-507.29993396,0.00020527,2]
[337295681,1725587440290,-2518.9,0.00020527,2]
[337295682,1725587440299,-500.0,0.00020527,2]
[337295683,1725587440310,-441.58476503,0.00020527,2]
[337295684,1725587440320,-655.44,0.00020527,2]
[337295685,1725587440330,-203.50149254,0.00020527,2]
[337295686,1725587440339,-500.0,0.00020527,2]
[337295687,1725587440348,-500.0,0.00020527,2]
[337295688,1725587440358,-2533.7,0.00020527,2]
[337295689,1725587440367,-500.0,0.00020528,2]
[337295690,1725587440375,-533.30710395,0.00020528,2]
[337295692,1725587440384,-210.97807841,0.00020528,2]
[337295693,1725587440393,-500.0,0.00020528,2]
[337295694,1725587440402,-531.03565162,0.00020528,2]
[337295695,1725587440411,-500.0,0.00020528,2]
[337295696,1725587440421,-500.0,0.00020528,2]
[337295697,1725587440430,-754.38,0.00020528,2]
[337295698,1725587440440,-34293.74,0.00020528,2]
[337295704,1725587440569,-211.84221097,0.0002053,2]
[337295706,1725587440579,-504.22669183,0.00020531,2]
[337295708,1725587440588,-502.41106039,0.00020531,2]
[337295710,1725587440597,-503.23939496,0.00020531,2]
[337295712,1725587440607,-501.44303551,0.00020531,2]
[337295714,1725587440617,-501.06424546,0.00020531,2]
[337295716,1725587440628,-500.7315755,0.00020531,2]
[337295718,1725587440637,-559.4196265,0.00020531,2]
[337295720,1725587440647,-501.53991451,0.00020531,2]
[337295722,1725587440657,-501.61348921,0.00020531,2]
[337295723,1725587440666,-501.19590033,0.00020531,2]
[337295725,1725587440676,-501.15308411,0.00020531,2]
[337295727,1725587440685,-501.68783212,0.00020531,2]
[337295729,1725587440695,-502.48545345,0.00020531,2]
[337295731,1725587440704,-503.01372391,0.00020531,2]
[337295733,1725587440714,-502.3455019,0.00020531,2]
[337295735,1725587440726,-501.86003706,0.00020531,2]
[337295737,1725587440736,-211.19830615,0.00020531,2]
[337295739,1725587440746,-503.18074007,0.00020531,2]
[337295741,1725587440756,-613.18245288,0.00020531,2]
[337295743,1725587440766,-503.72151264,0.00020531,2]
[337295745,1725587440775,-502.67543702,0.00020531,2]
[337295747,1725587440785,-503.2824637,0.00020531,2]
[337295749,1725587440794,-502.98600625,0.00020531,2]
[337295751,1725587440804,-501.36047435,0.00020531,2]
[337295753,1725587440815,-502.03956678,0.00020531,2]
[337295756,1725587440824,-500.0,0.00020531,2]
[337295757,1725587440834,-503.15575121,0.00020531,2]
[337295760,1725587440844,-616.16,0.00020544,3]
[337295762,1725587440854,-308.08,0.00020544,3]
[337295764,1725587440864,-213.45965279,0.00020553,2]
[337295766,1725587440874,-500.0,0.00020553,2]
[337295768,1725587440883,-500.0,0.00020553,2]
[337295770,1725587440893,-500.0,0.00020553,2]
[337295772,1725587440902,-500.0,0.00020553,2]
[337295774,1725587440911,-500.0,0.00020553,2]
[337295776,1725587440921,-500.0,0.00020553,2]
[337295778,1725587440930,-500.0,0.00020553,2]
[337295780,1725587440939,-500.0,0.00020553,2]
[337295782,1725587440948,-500.0,0.00020553,2]
[337295784,1725587440957,-500.0,0.00020553,2]
[337295785,1725587440967,-474.12853553,0.00020553,2]
[337295787,1725587440977,-500.0,0.00020553,2]
[337295789,1725587440986,-500.0,0.00020553,2]
[337295791,1725587440995,-500.0,0.00020553,2]
[337295793,1725587441004,-500.0,0.00020553,2]
[337295795,1725587441014,-500.0,0.00020553,2]
[337295797,1725587441023,-500.0,0.00020553,2]
[337295799,1725587441032,-500.0,0.00020553,2]
[337295801,1725587441042,-500.0,0.00020553,2]
[337295803,1725587441051,-500.0,0.00020553,2]
[337295805,1725587441060,-217.30421828,0.00020553,2]
[337295807,1725587441069,-500.0,0.00020553,2]
[337295809,1725587441079,-157.31349153,0.00020553,2]
[337295811,1725587441088,-500.0,0.00020553,2]
[337295812,1725587441098,-500.0,0.00020553,2]
[337295814,1725587441108,-248.84236399,0.00020553,2]
[337295816,1725587441118,-500.0,0.00020553,2]
[337295818,1725587441127,-500.0,0.00020553,2]
[337295820,1725587441136,-500.0,0.00020553,2]
[337295822,1725587441146,-500.0,0.00020553,2]
[337295824,1725587441155,-500.0,0.00020553,2]
[337295826,1725587441164,-500.0,0.00020553,2]
[337295828,1725587441173,-500.0,0.00020553,2]
[337295830,1725587441182,-500.0,0.00020553,2]
[337295832,1725587441192,-500.0,0.00020553,2]
[337295834,1725587441201,-500.0,0.00020553,2]
[337295835,1725587441210,-500.0,0.00020553,2]
[337295837,1725587441219,-500.0,0.00020553,2]
[337295839,1725587441230,-403.58917148,0.00020553,2]
[337295842,1725587441239,-91965.059575,0.00020554,2]
[337295843,1725587441248,-23648.0686324,0.00020554,2]
[337295845,1725587441257,-17178.38911502,0.00020555,15]
[337295847,1725587441266,-275895.178725,0.00020555,2]
[337295849,1725587441276,-23648.0686324,0.00020555,2]
[337295851,1725587441285,-500.0,0.00020575,2]
[337295853,1725587441295,-500.0,0.00020575,2]
[337295855,1725587441304,-500.0,0.00020575,2]
[337295857,1725587441313,-500.0,0.00020575,2]
[337295859,1725587441322,-500.0,0.00020575,2]
[337295861,1725587441331,-500.0,0.00020575,2]
[337295863,1725587441341,-500.0,0.00020575,2]
[337295865,1725587441350,-450.47142156,0.00020575,2]
[337295867,1725587441359,-500.0,0.00020575,2]
[337295869,1725587441368,-263.11121515,0.00020575,2]
[337295871,1725587441377,-500.0,0.00020575,2]
[337295873,1725587441387,-387.01146338,0.00020575,2]
[337295875,1725587441396,-502.50607817,0.00020576,2]
[337295877,1725587441405,-504.27182788,0.00020576,2]
[337295879,1725587441414,-506.77897216,0.00020576,2]
[337295881,1725587441424,-174.227348,0.00020699,2]
[337295883,1725587441434,-500.0,0.00020795,2]
[337295885,1725587441445,-500.0,0.00020795,2]
[337295887,1725587441454,-500.0,0.00020795,2]
[337295889,1725587441463,-743.53,0.00020795,2]
[337295891,1725587441472,-500.0,0.00020795,2]
[337295894,1725587441483,-169.94002643,0.00020795,2]
[337295896,1725587441494,-500.0,0.00020795,2]
[337295898,1725587441503,-500.0,0.00020795,2]
[337295900,1725587441513,-500.0,0.00020795,2]
[337295902,1725587441523,-500.0,0.00020795,2]
[337295904,1725587441533,-464.54135223,0.00020795,2]
[337295906,1725587441542,-253.37135479,0.00020795,2]
[337295908,1725587441554,-2518.9,0.00020801,2]
[337295910,1725587441564,-500.0,0.00020801,2]
[337295912,1725587441573,-655.44,0.00020801,2]
[337295914,1725587441584,-500.0,0.00020801,2]
[337295916,1725587441594,-2533.7,0.00020801,2]
[337295918,1725587441603,-384.87698488,0.00020801,2]
[337295920,1725587441613,-179.87187785,0.00020801,2]
[337295922,1725587441623,-500.0,0.00020801,2]
[337295924,1725587441634,-230.36302551,0.00020801,2]
[337295926,1725587441645,-500.0,0.00020801,2]
[337295928,1725587441655,-216.4863332,0.00020801,2]
[337295930,1725587441665,-500.0,0.00020801,2]
[337295932,1725587441674,-500.0,0.00020801,2]
[337295934,1725587441684,-500.0,0.00020801,2]
[337295936,1725587441695,-500.0,0.00020801,2]
[337295939,1725587441705,-500.0,0.00020801,2]
[337295941,1725587441714,-500.0,0.00020801,2]
[337295943,1725587441726,-422.4998611,0.00020802,2]
[337295945,1725587441735,-249.07280003,0.00020802,2]
[337295947,1725587441745,-500.0,0.00020802,2]
[337295949,1725587441754,-500.0,0.00020802,2]
[337295951,1725587441764,-754.38,0.00020802,2]
[337295953,1725587441774,-34293.74,0.00020802,2]
[337295955,1725587441784,-500.0,0.00020804,2]
[337295957,1725587441793,-500.0,0.00020804,2]
[337295958,1725587441802,-409.97389964,0.00020804,2]
[337295960,1725587441812,-370.97468663,0.00020805,2]
[337295962,1725587441821,-500.0,0.00020849,2]
[337295964,1725587441831,-500.0,0.00020849,2]
[337295967,1725587441841,-500.0,0.00020849,2]
[337295969,1725587441851,-500.0,0.00020849,2]
[337295971,1725587441860,-500.0,0.00020849,2]
[337295973,1725587441869,-500.0,0.00020849,2]
[337295975,1725587441879,-236.348499,0.00020986,2]
[337295977,1725587441888,-3000.0,0.00021,2]
[337295979,1725587441898,-500.0,0.00021069,2]
[337295981,1725587441907,-500.0,0.00021069,2]
[337295983,1725587441917,-507.78060071,0.00021069,2]
[337295985,1725587441927,-743.53,0.00021069,2]
[337295987,1725587441936,-500.0,0.00021069,2]
[337295989,1725587441946,-508.80831198,0.00021069,2]
[337295990,1725587441955,-500.0,0.00021069,2]
[337295992,1725587441964,-510.8782225,0.00021069,2]
[337295994,1725587441976,-500.0,0.00021069,2]
[337295997,1725587441986,-2518.9,0.00021075,2]
[337295999,1725587441995,-500.0,0.00021075,2]
[337296001,1725587442006,-655.44,0.00021075,2]
[337296003,1725587442016,-500.0,0.00021075,2]
[337296005,1725587442026,-2533.7,0.00021075,2]
[337296007,1725587442037,-500.0,0.00021076,2]
[337296009,1725587442047,-500.0,0.00021076,2]
[337296011,1725587442057,-754.38,0.00021076,2]
[337296013,1725587442067,-34293.74,0.00021076,2]
[337296015,1725587442077,-1145.92043445,0.000211,2]
[337296017,1725587442087,-370.693672,0.000211,2]
[337296019,1725587442096,-154.049176,0.00021113,2]
[337296021,1725587442106,-156.650702,0.00021113,2]
[337296024,1725587442119,-151.0,0.00021113,2]
[337296026,1725587442129,-151.0,0.00021113,2]
[337296028,1725587442140,-462.845909,0.00021113,2]
[337296030,1725587442150,-462.845909,0.00021113,2]
[337296032,1725587442159,-500.0,0.00021123,2]
[337296034,1725587442169,-500.0,0.00021123,2]
[337296036,1725587442178,-500.0,0.00021123,2]
[337296038,1725587442188,-500.0,0.00021123,2]
[337296040,1725587442197,-634.3813728,0.00021123,2]
[337296042,1725587442207,-500.0,0.00021123,2]
[337296044,1725587442216,-151.0,0.00021123,2]
[337296046,1725587442226,-151.0,0.00021123,2]
[337296048,1725587442235,-151.0,0.00021123,2]
[337296050,1725587442244,-500.30246099,0.00021182,2]
[337296052,1725587442254,-500.42384969,0.00021182,2]
[337296054,1725587442264,-500.31379239,0.00021182,2]
[337296056,1725587442273,-500.90071859,0.00021259,2]
[337296058,1725587442283,-156.0,0.0002128,5]
[337296060,1725587442293,-500.0,0.00021343,2]
[337296062,1725587442302,-277.01815204,0.00021343,2]
[337296064,1725587442313,-743.53,0.00021343,2]
[337296066,1725587442322,-500.0,0.00021343,2]
[337296068,1725587442333,-500.0,0.00021343,2]
[337296070,1725587442343,-500.0,0.00021343,2]
[337296072,1725587442352,-2518.9,0.00021349,2]
[337296073,1725587442361,-500.0,0.00021349,2]
[337296074,1725587442371,-655.44,0.00021349,2]
[337296075,1725587442381,-500.0,0.00021349,2]
[337296076,1725587442390,-2533.7,0.00021349,2]
[337296077,1725587442399,-500.0,0.0002135,2]
[337296078,1725587442409,-264.43828329,0.0002135,2]
[337296079,1725587442418,-754.38,0.0002135,2]
[337296080,1725587442428,-34293.74,0.0002135,2]
[337296081,1725587442438,-1008.39123487,0.00021373,2]
[337296082,1725587442447,-508.25915909,0.00021397,2]
[337296083,1725587442458,-500.0,0.00021397,2]
[337296084,1725587442467,-500.0,0.00021397,2]
[337296085,1725587442480,-462.845909,0.00021397,2]
[337296086,1725587442490,-500.0,0.00021397,2]
[337296087,1725587442499,-462.845909,0.00021397,2]
[337296089,1725587442511,-151.0,0.00021397,2]
[337296091,1725587442523,-192.10784,0.00021397,2]
[337296093,1725587442532,-151.0,0.00021397,2]
[337296095,1725587442543,-501.01247489,0.0002148,2]
[337296097,1725587442557,-500.0,0.00021614,2]
[337296099,1725587442566,-500.0,0.00021614,2]
[337296101,1725587442576,-500.0,0.00021614,2]
[337296103,1725587442586,-500.0,0.00021614,2]
[337296105,1725587442596,-500.0,0.00021616,2]
[337296107,1725587442606,-743.53,0.00021616,2]
[337296109,1725587442615,-500.0,0.00021616,2]
[337296111,1725587442624,-500.0,0.00021616,2]
[337296113,1725587442635,-500.0,0.00021616,2]
[337296115,1725587442644,-2518.9,0.00021623,2]
[337296117,1725587442653,-500.0,0.00021623,2]
[337296119,1725587442663,-655.44,0.00021623,2]
[337296121,1725587442672,-500.0,0.00021623,2]
[337296123,1725587442681,-2533.7,0.00021623,2]
[337296125,1725587442690,-506.39592376,0.00021624,2]
[337296127,1725587442700,-754.38,0.00021624,2]
[337296129,1725587442711,-31601.45207212,0.00021624,2]
[337296144,1725587442839,-499.99541462,0.0002052,2]
[337296146,1725587442849,-504.4165362,0.00020521,2]
[337296148,1725587442859,-500.0,0.00020801,2]
[337296150,1725587442869,-635.60166289,0.00020801,2]
[337296152,1725587442880,-2692.28792788,0.00021624,2]
[337296154,1725587442891,-500.0,0.00021625,2]
[337296156,1725587442901,-500.0,0.00021625,2]
[337296158,1725587442911,-151.0,0.00021625,2]
[337296160,1725587442920,-151.0,0.00021625,2]
[337296163,1725587442931,-176.30786211,0.00021626,2]
[337296165,1725587442940,-203.29776746,0.00021626,2]
[337296167,1725587442950,-500.0,0.00021661,2]
[337296169,1725587442960,-500.0,0.00021661,2]
[337296171,1725587442969,-500.0,0.00021671,2]
[337296173,1725587442979,-500.0,0.00021671,2]
[337296175,1725587442989,-500.0,0.00021671,2]
[337296177,1725587442998,-500.0,0.00021781,2]
[337296179,1725587443007,-500.0,0.00021781,2]
[337296181,1725587443017,-500.0,0.00021781,2]
[337296183,1725587443026,-500.0,0.00021781,2]
[337296185,1725587443036,-500.0,0.0002179,2]
[337296187,1725587443046,-229.45510178,0.0002179,2]
[337296189,1725587443056,-156.081052,0.00021881,2]
[337296191,1725587443066,-500.0,0.00021881,2]
[337296193,1725587443075,-500.0,0.00021881,2]
[337296195,1725587443085,-500.0,0.00021881,2]
[337296197,1725587443094,-308.08,0.00021888,3]
[337296199,1725587443103,-500.0,0.0002189,2]
[337296201,1725587443115,-743.53,0.0002189,2]
[337296203,1725587443125,-500.0,0.0002189,2]
[337296205,1725587443136,-500.0,0.0002189,2]
[337296207,1725587443146,-500.0,0.0002189,2]
[337296209,1725587443157,-2518.9,0.00021897,2]
[337296211,1725587443166,-500.0,0.00021897,2]
[337296213,1725587443175,-655.44,0.00021897,2]
[337296215,1725587443184,-325.2545,0.00021897,2]
[337296217,1725587443193,-2533.7,0.00021897,2]
[337296219,1725587443203,-505.67986023,0.00021898,2]
[337296221,1725587443212,-754.38,0.00021898,2]
[337296223,1725587443222,-34293.74,0.00021898,2]
[337296225,1725587443232,-151.0,0.000219,2]
[337296227,1725587443241,-151.0,0.000219,2]
[337296229,1725587443250,-155.250692,0.000219,2]
[337296231,1725587443260,-1232.32,0.00021914,3]
[337296233,1725587443269,-616.16,0.00021914,3]
[337296235,1725587443278,-506.6323495,0.00021917,2]
[337296237,1725587443287,-500.0,0.00021917,2]
[337296239,1725587443296,-535.67360744,0.00021917,2]
[337296241,1725587443306,-500.0,0.00021918,2]
[337296243,1725587443315,-500.0,0.00021918,2]
[337296245,1725587443325,-500.0,0.00021918,2]
[337296248,1725587443334,-239.80093242,0.00021918,2]
[337296251,1725587443343,-500.0,0.00021918,2]
[337296253,1725587443352,-500.0,0.00021918,2]
[337296255,1725587443362,-500.0,0.00021918,2]
[337296258,1725587443371,-500.0,0.00021918,2]
[337296261,1725587443381,-500.0,0.00021918,2]
[337296265,1725587443390,-500.0,0.00021918,2]
[337296267,1725587443401,-500.0,0.00021918,2]
[337296269,1725587443410,-500.0,0.00021918,2]
[337296282,1725587443522,-500.0,0.00021918,2]
[337296284,1725587443533,-500.0,0.00021918,2]
[337296286,1725587443543,-500.0,0.00021918,2]
[337296289,1725587443557,-500.0,0.00021918,2]
[337296291,1725587443568,-500.0,0.00021918,2]
[337296293,1725587443579,-500.0,0.00021918,2]
[337296295,1725587443592,-151.0,0.00021925,7]
[337296298,1725587443603,-23648.0686324,0.00021935,2]
[337296300,1725587443612,-500.0,0.00021945,2]
[337296302,1725587443625,-500.0,0.00021945,2]
[337296304,1725587443636,-500.0,0.00021945,2]
[337296306,1725587443646,-453.36670087,0.00022,2]
[337296308,1725587443656,-500.0,0.00022164,2]
[337296310,1725587443666,-743.53,0.00022164,2]
[337296312,1725587443675,-53.64941044,0.00022164,2]
[337296315,1725587443687,-130.07828006,0.00022164,2]
[337296317,1725587443696,-500.0,0.00022164,2]
[337296319,1725587443706,-500.0,0.00022164,2]
[337296321,1725587443715,-2518.9,0.00022171,2]
[337296322,1725587443724,-237.27146225,0.00022171,2]
[337296324,1725587443734,-655.44,0.00022171,2]
[337296327,1725587443743,-2533.7,0.00022171,2]
[337296329,1725587443753,-754.38,0.00022172,2]
[337296331,1725587443762,-34293.74,0.00022172,2]
[337296333,1725587443772,-500.0,0.00022219,2]